bitfinex-derivatives/quotes_BTCF0:USTF0_20240814
["timestamp","ask_amount","ask_price","bid_price","bid_amount"]
[1723656632862,0.25483504,59194.0,59192.0,0.084443]
[1723656633054,0.25483504,59186.0,59185.0,0.52971]
[1723656633256,0.00088,59201.0,59194.0,0.084442]
[1723656633470,0.00021344,59195.0,59194.0,0.736742]
[1723656633664,0.00088,59201.0,59200.0,0.084434]
[1723656633852,0.156,59206.0,59204.0,0.084427]
[1723656634057,0.156,59206.0,59199.0,0.3608]
[1723656634252,0.2895,59211.0,59201.0,0.2915]
[1723656634460,0.1444,59215.0,59206.0,0.2915]
[1723656634678,0.10426679,59209.0,59206.0,0.2915]
[1723656634852,0.10426679,59209.0,59208.0,0.084422]
[1723656635057,0.25388596,59211.0,59206.0,0.2915]
[1723656635352,0.25498781,59209.0,59206.0,0.2915]
[1723656635559,0.25498781,59209.0,59208.0,0.084422]
[1723656636059,0.25498781,59210.0,59209.0,0.084421]
[1723656636664,0.61578781,59210.0,59206.0,0.002]
[1723656636963,0.2540267,59209.0,59206.0,0.002]
[1723656637361,0.2967,59212.0,59206.0,0.086425]
[1723656637669,0.014,59209.0,59207.0,0.084424]
[1723656638062,0.25387539,59211.0,59206.0,0.001]
[1723656638370,0.1444,59215.0,59206.0,0.001]
[1723656638371,0.001,59209.0,59208.0,0.084422]
[1723656638761,0.25487539,59209.0,59208.0,0.084422]
[1723656638965,0.25387539,59209.0,59208.0,0.084422]
[1723656639968,0.25441918,59211.0,59210.0,0.084418]
[1723656640769,0.1451828,59217.0,59216.0,0.084411]
[1723656640977,0.1578,59228.0,59216.0,0.2915]
[1723656641171,0.2539891,59220.0,59216.0,0.2915]
[1723656641361,0.2539891,59217.0,59216.0,0.375911]
[1723656642165,0.598588,59232.0,59216.0,0.2915]
[1723656642366,0.25188073,59224.0,59223.0,0.084401]
[1723656642569,0.5142,59232.0,59224.0,0.0844]
[1723656642570,0.25188073,59225.0,59224.0,0.0844]
[1723656643360,0.25188073,59231.0,59219.0,0.36105344]
[1723656643563,0.61268073,59231.0,59229.0,0.084392]
[1723656643765,0.25188073,59231.0,59229.0,0.084392]
[1723656644072,0.3608,59231.0,59229.0,0.084392]
[1723656644566,0.1534,59232.0,59229.0,0.084392]
[1723656644567,0.25367828,59230.0,59229.0,0.084392]
[1723656645076,0.26567828,59231.0,59229.0,0.084392]
[1723656645277,0.26567828,59231.0,59225.0,0.3608]
[1723656645278,0.012,59231.0,59230.0,0.084391]
[1723656645867,0.26513959,59231.0,59230.0,0.084391]
[1723656646271,0.27913959,59231.0,59230.0,0.084391]
[1723656647268,0.27913959,59231.0,59230.0,0.09543845]
[1723656647461,0.26713959,59231.0,59230.0,0.09643845]
[1723656647666,0.26713959,59231.0,59230.0,0.45723845]
[1723656650581,0.26713959,59231.0,59230.0,0.54162945]
[1723656650770,0.05155406,59231.0,59230.0,1.44810945]
[1723656650966,0.3608,59248.0,59246.0,0.084368]
[1723656651174,0.3608,59248.0,59242.0,0.2915]
[1723656651378,0.61323016,59248.0,59247.0,0.084367]
[1723656651967,0.25243016,59248.0,59247.0,0.084367]
[1723656652377,0.25202798,59250.0,59242.0,0.2915]
[1723656652576,0.25202798,59250.0,59249.0,0.084364]
[1723656652876,0.3608,59251.0,59250.0,0.084363]
[1723656653182,0.158,59258.0,59249.0,0.2915]
[1723656653375,0.25334689,59251.0,59249.0,0.2915]
[1723656653776,0.25334689,59251.0,59250.0,0.084363]
[1723656653983,0.25334689,59255.0,59254.0,0.084357]
[1723656654776,0.1614,59258.0,59255.0,0.084355]
[1723656655085,0.1614,59258.0,59250.0,0.3618]
[1723656655280,0.25311782,59255.0,59250.0,0.3618]
[1723656655881,0.014,59256.0,59255.0,0.084356]
[1723656656279,0.014,59256.0,59255.0,0.445156]
[1723656656981,0.014,59256.0,59255.0,0.084356]
[1723656657193,0.25385671,59256.0,59251.0,0.084362]
[1723656657485,0.104356,59255.0,59254.0,0.002]
[1723656657682,0.272056,59255.0,59254.0,0.002]
[1723656657888,1.43270757,59255.0,59254.0,0.002]
[1723656658380,0.084375,59242.0,59241.0,0.00025321]
[1723656658585,0.3608,59243.0,59241.0,0.00025321]
[1723656658783,0.252789,59242.0,59241.0,0.08462921]
[1723656659183,0.3608,59243.0,59242.0,0.084375]
[1723656659681,0.61293111,59243.0,59242.0,0.084375]
[1723656659883,0.25213111,59243.0,59242.0,0.084375]
[1723656660074,0.25213111,59243.0,59241.0,0.00025321]
[1723656660281,0.8672,59243.0,59241.0,0.00025321]
[1723656660679,0.33788639,59242.0,59241.0,0.00025321]
[1723656661175,0.084382,59238.0,59235.0,0.084383]
[1723656661376,0.08439,59232.0,59229.0,0.01071369]
[1723656661679,0.445183,59236.0,59226.0,0.36093167]
[1723656662280,0.25288104,59231.0,59230.0,0.084392]
[1723656662985,0.084389,59232.0,59230.0,0.084392]
[1723656664080,0.084389,59232.0,59231.0,0.08439]
[1723656664283,0.084389,59232.0,59226.0,0.37200811]
[1723656664284,0.25422415,59231.0,59230.0,0.005]
[1723656664476,0.25422415,59231.0,59230.0,0.089392]
[1723656665180,0.61502415,59231.0,59230.0,0.089392]
[1723656665387,0.3608,59231.0,59230.0,0.089392]
[1723656665894,0.61497964,59231.0,59230.0,0.089392]
[1723656666488,0.25417964,59231.0,59230.0,0.089392]
[1723656666687,0.61497964,59231.0,59230.0,0.084392]
[1723656666891,0.3608,59231.0,59230.0,0.084392]
[1723656667187,0.001,59236.0,59230.0,0.2915]
[1723656667383,0.001,59236.0,59235.0,0.375885]
[1723656667888,0.00025244,59237.0,59236.0,0.084383]
[1723656668288,0.25371127,59237.0,59236.0,0.084383]
[1723656669091,0.25871127,59237.0,59236.0,0.084383]
[1723656669877,0.25871127,59237.0,59236.0,0.09530717]
[1723656670079,0.25971127,59237.0,59236.0,0.09530717]
[1723656670288,0.25971127,59237.0,59232.0,0.3608]
[1723656670289,0.25971127,59237.0,59232.0,0.445188]
[1723656670588,0.62051127,59237.0,59232.0,0.445188]
[1723656670890,0.084387,59233.0,59232.0,0.3608]
[1723656671093,0.084387,59233.0,59230.0,0.002]
[1723656671284,0.3608,59231.0,59230.0,0.086392]
[1723656671479,0.26059127,59237.0,59236.0,0.084383]
[1723656671681,0.25971127,59237.0,59236.0,0.084383]
[1723656671884,0.25471127,59237.0,59236.0,0.084383]
[1723656672090,0.00125244,59237.0,59236.0,0.084383]
[1723656672291,0.36205244,59237.0,59236.0,0.084383]
[1723656672491,0.61584641,59237.0,59236.0,0.084383]
[1723656672992,0.25504641,59237.0,59236.0,0.084383]
[1723656673490,0.26004641,59237.0,59236.0,0.084383]
[1723656673996,0.25904641,59237.0,59236.0,0.168766]
[1723656674180,0.25904641,59237.0,59236.0,0.321966]
[1723656674386,0.25904641,59237.0,59236.0,0.237583]
[1723656674882,0.26204641,59237.0,59236.0,0.237583]
[1723656675083,0.25704641,59237.0,59236.0,0.237583]
[1723656676194,0.26104641,59237.0,59236.0,0.237583]
[1723656676391,0.25804641,59237.0,59236.0,0.28757459]
[1723656676788,0.26404641,59237.0,59236.0,0.29157459]
[1723656676989,0.26004641,59237.0,59236.0,0.29157459]
[1723656677289,0.26004641,59237.0,59236.0,0.241583]
[1723656677491,0.25904641,59237.0,59236.0,0.241583]
[1723656677784,0.25904641,59237.0,59236.0,0.29140364]
[1723656678490,0.12735615,59237.0,59236.0,1.232406]
[1723656678694,0.06827293,59237.0,59236.0,1.232406]
[1723656678996,0.06827293,59237.0,59236.0,1.52852484]
[1723656679191,0.3608,59254.0,59253.0,0.084359]
[1723656679396,0.3608,59262.0,59253.0,0.6523]
[1723656679602,0.3608,59262.0,59254.0,0.04981554]
[1723656679795,0.3608,59262.0,59260.0,0.084348]
[1723656679796,0.2531051,59261.0,59260.0,0.084348]
[1723656680194,0.084351,59259.0,59253.0,0.6523]
[1723656680390,0.05040545,59257.0,59253.0,0.6523]
[1723656680591,0.05040545,59257.0,59254.0,0.084357]
[1723656680792,0.30423002,59256.0,59254.0,0.084357]
[1723656681199,0.25382457,59256.0,59255.0,0.084356]
[1723656681589,0.25377359,59257.0,59255.0,0.084356]
[1723656681903,0.30417904,59257.0,59255.0,0.084356]
[1723656682097,0.25377359,59256.0,59255.0,0.084356]
[1723656682605,0.05040545,59257.0,59255.0,0.084356]
[1723656683101,0.26046106,59256.0,59255.0,0.001]
[1723656683293,0.26046106,59256.0,59255.0,0.085356]
[1723656683693,0.26046106,59256.0,59255.0,0.087356]
[1723656684003,0.26446106,59256.0,59255.0,0.087356]
[1723656685701,0.25546106,59256.0,59255.0,0.086356]
[1723656686197,0.25546106,59256.0,59255.0,1.076992]
[1723656686408,0.05040545,59265.0,59256.0,0.50628]
[1723656686604,0.3075,59277.0,59267.0,0.084339]
[1723656686605,0.05040545,59268.0,59267.0,0.084339]
[1723656686807,0.3075,59277.0,59270.0,0.2915]
[1723656687198,0.25378985,59274.0,59270.0,0.2915]
[1723656687399,0.25378985,59274.0,59273.0,0.08433]
[1723656687905,0.58129119,59276.0,59270.0,0.2915]
[1723656687906,0.3608,59276.0,59275.0,0.084328]
[1723656688295,0.00519047,59276.0,59275.0,0.084328]
[1723656688505,0.36599047,59276.0,59275.0,0.084328]
[1723656688816,0.00519047,59276.0,59275.0,0.084328]
[1723656689110,0.1556,59278.0,59275.0,0.084328]
[1723656689308,0.25316111,59277.0,59275.0,0.084328]
[1723656689496,0.25316111,59276.0,59275.0,0.09626283]
[1723656689910,0.014,59277.0,59275.0,0.09626283]
[1723656690206,0.014,59277.0,59275.0,0.09726283]
[1723656690207,0.26676089,59276.0,59275.0,0.09726283]
[1723656690607,0.014,59276.0,59275.0,0.09726283]
[1723656690998,0.26676089,59276.0,59275.0,0.09726283]
[1723656692218,0.26676089,59276.0,59275.0,1.44851083]
[1723656692409,0.24899195,59276.0,59275.0,1.44851083]
[1723656692712,0.24899195,59276.0,59275.0,1.44751083]
[1723656692914,0.3226,59288.0,59287.0,0.08431]
[1723656693207,0.1546,59294.0,59292.0,0.084303]
[1723656693810,0.5618,59293.0,59292.0,0.084303]
[1723656694607,0.201,59293.0,59292.0,0.084303]
[1723656694807,0.41480911,59293.0,59287.0,0.58349124]
[1723656694998,0.21716672,59290.0,59287.0,0.58173124]
[1723656695197,0.21380911,59289.0,59288.0,0.084309]
[1723656695406,0.21175848,59289.0,59288.0,0.590309]
[1723656695600,0.21175848,59289.0,59288.0,0.084309]
[1723656695805,0.21175848,59289.0,59287.0,0.40875009]
[1723656696004,0.21175848,59289.0,59287.0,0.40699009]
[1723656696005,0.18648204,59288.0,59287.0,0.40699009]
[1723656696404,0.43855074,59288.0,59287.0,0.40699009]
[1723656696610,0.43855074,59288.0,59287.0,0.49130109]
[1723656697009,0.37763379,59288.0,59287.0,0.49230109]
[1723656697614,0.43855074,59288.0,59287.0,0.20080109]
[1723656697817,0.37763379,59288.0,59287.0,0.20080109]
[1723656698213,0.56109201,59288.0,59287.0,0.20080109]
[1723656698714,0.56109201,59288.0,59287.0,0.01182531]
[1723656698715,0.79935074,59288.0,59287.0,0.01182531]
[1723656699109,0.90433379,59288.0,59287.0,0.01182531]
[1723656699415,0.96525074,59288.0,59287.0,0.01182531]
[1723656699613,0.90433379,59288.0,59287.0,0.09613631]
[1723656699817,0.90433379,59288.0,59287.0,0.09713631]
[1723656700819,0.90433379,59288.0,59287.0,0.002]
[1723656701014,0.90433379,59288.0,59282.0,0.00025321]
[1723656701211,0.3608,59283.0,59282.0,0.00025321]
[1723656701415,0.57068209,59283.0,59282.0,0.00025321]
[1723656701822,0.445117,59283.0,59282.0,0.00025321]
[1723656702214,0.69686923,59283.0,59282.0,0.00025321]
[1723656702410,0.69686923,59283.0,59282.0,0.00125321]
[1723656702616,0.69686923,59283.0,59282.0,0.00225321]
[1723656703115,0.69686923,59283.0,59282.0,0.00125321]
[1723656704223,0.69686923,59283.0,59282.0,0.00225321]
[1723656705020,0.69686923,59283.0,59282.0,0.08657121]
[1723656705221,0.61255223,59283.0,59282.0,0.08657121]
[1723656705827,0.25175223,59283.0,59282.0,0.08657121]
[1723656706323,0.2531195,59287.0,59286.0,0.084312]
[1723656706520,0.5267,59288.0,59284.0,0.2915]
[1723656706727,0.5267,59288.0,59287.0,0.084311]
[1723656707321,0.78035054,59288.0,59287.0,0.084311]
[1723656707527,0.41955054,59288.0,59287.0,0.084311]
[1723656708121,0.41955054,59288.0,59282.0,0.00225321]
[1723656708122,0.084317,59283.0,59282.0,0.00225321]
[1723656708324,0.445117,59283.0,59282.0,1e-08]
[1723656708532,1.18188177,59283.0,59282.0,1e-08]
[1723656708722,1.68792177,59283.0,59282.0,1e-08]
[1723656709031,1.68792177,59283.0,59265.0,0.084342]
[1723656709032,1.61360477,59283.0,59265.0,0.084342]
[1723656709229,0.3608,59266.0,59265.0,0.084342]
[1723656709527,0.3608,59271.0,59270.0,0.084335]
[1723656709727,0.3610525,59271.0,59270.0,0.084335]
[1723656709924,0.61456313,59271.0,59270.0,0.084335]
[1723656710125,0.61456313,59271.0,59266.0,0.08434]
[1723656710334,0.084339,59267.0,59266.0,0.08434]
[1723656710725,0.33586407,59267.0,59266.0,0.08434]
[1723656711118,0.25152507,59267.0,59266.0,0.08434]
[1723656711537,0.25162092,59269.0,59264.0,0.2915]
[1723656711835,0.3608,59266.0,59264.0,0.2915]
[1723656712228,0.31861267,59266.0,59265.0,0.091342]
[1723656712619,0.57316672,59266.0,59265.0,0.091342]
[1723656712822,0.25455405,59266.0,59265.0,0.091342]
[1723656713026,0.25455405,59266.0,59265.0,0.50195754]
[1723656713227,0.25162092,59267.0,59266.0,0.084341]
[1723656713426,0.25287277,59268.0,59266.0,0.04993226]
[1723656713622,0.25287277,59268.0,59265.0,0.3608]
[1723656713623,0.25287277,59268.0,59267.0,0.04993226]
[1723656713832,0.1534,59270.0,59269.0,0.084336]
[1723656714231,0.40627277,59270.0,59269.0,0.084336]
[1723656715536,0.40627277,59270.0,59269.0,0.087336]
[1723656716036,0.49060777,59270.0,59269.0,0.003]
[1723656716222,0.49060777,59270.0,59265.0,0.52256272]
[1723656716223,1.60393277,59270.0,59266.0,0.04993226]
[1723656716426,1.60393277,59270.0,59260.0,0.00025298]
[1723656716427,0.3608,59267.0,59260.0,0.00025298]
[1723656716634,0.529496,59261.0,59260.0,0.00025298]
[1723656716837,0.084355,59256.0,59247.0,0.084367]
[1723656717031,0.44479804,59248.0,59247.0,0.084367]
[1723656717224,0.084369,59246.0,59238.0,0.3608]
[1723656717429,0.06715249,59245.0,59238.0,0.3608]
[1723656717631,0.06715249,59245.0,59238.0,0.37140371]
[1723656717632,0.084371,59245.0,59238.0,0.37140371]
[1723656717824,0.31232349,59245.0,59238.0,0.37140371]
[1723656718128,0.31232349,59245.0,59244.0,0.084372]
[1723656718330,0.06740547,59247.0,59246.0,0.084369]
[1723656719235,0.00025298,59247.0,59246.0,0.084369]
[1723656719635,0.33836497,59247.0,59246.0,0.096369]
[1723656720042,0.33936497,59247.0,59246.0,0.021]
[1723656720239,0.40651746,59247.0,59236.0,0.00025298]
[1723656720539,0.3608,59237.0,59236.0,0.08463598]
[1723656720740,0.42795249,59237.0,59236.0,0.08463598]
[1723656720937,0.68025383,59237.0,59236.0,0.08463598]
[1723656721333,0.61310134,59237.0,59236.0,0.08463598]
[1723656721732,0.93640134,59237.0,59236.0,0.00025298]
[1723656722037,0.93640134,59237.0,59236.0,0.00825298]
[1723656722038,1.02078334,59237.0,59236.0,0.00825298]
[1723656723032,1.38158334,59237.0,59236.0,0.00825298]
[1723656723238,0.084391,59231.0,59229.0,0.084393]
[1723656723442,0.3608,59230.0,59229.0,0.084393]
[1723656723639,0.61367649,59230.0,59229.0,0.084393]
[1723656724638,0.61367649,59230.0,59226.0,0.01115807]
[1723656724939,0.084396,59227.0,59226.0,0.00013167]
[1723656725538,0.084396,59227.0,59226.0,0.08452967]
[1723656725933,0.33850599,59227.0,59226.0,0.08452967]
[1723656726341,0.25410999,59227.0,59226.0,0.08452967]
[1723656726840,0.3618,59227.0,59226.0,0.08452967]
[1723656727030,0.6136796,59227.0,59226.0,0.08452967]
[1723656727337,0.6980756,59227.0,59226.0,0.08452967]
[1723656728129,0.6980756,59227.0,59226.0,0.00013167]
[1723656728330,1.2045956,59227.0,59226.0,0.00013167]
[1723656728842,0.6136796,59227.0,59226.0,0.08452967]
[1723656729341,0.6136796,59227.0,59226.0,0.08952967]
[1723656730442,0.6980756,59227.0,59226.0,0.00513167]
[1723656731143,0.6980756,59227.0,59226.0,0.08952967]
[1723656731339,0.6136796,59227.0,59226.0,0.08952967]
[1723656733535,0.6980756,59227.0,59226.0,0.00513167]
[1723656733730,0.7824716,59227.0,59226.0,0.00513167]
[1723656734734,0.084405,59221.0,59209.0,0.1672]
[1723656734932,0.084405,59221.0,59208.0,0.3608]
[1723656734933,0.445215,59214.0,59213.0,0.084416]
[1723656735340,0.69815518,59214.0,59213.0,0.084416]
[1723656735538,0.69815518,59214.0,59197.0,0.321]
[1723656735539,1.84924018,59214.0,59191.0,0.0498158]
[1723656735737,1.84924018,59214.0,59172.0,0.3608]
[1723656735738,0.3608,59192.0,59184.0,0.00164]
[1723656735938,0.56938506,59214.0,59190.0,0.084448]
[1723656735939,0.36091898,59191.0,59190.0,0.084448]
[1723656736246,0.449124,59208.0,59203.0,0.08443]
[1723656736247,0.3608,59204.0,59203.0,0.08443]
[1723656736435,0.084443,59195.0,59189.0,0.1603]
[1723656736749,0.3608,59190.0,59189.0,0.1603]
[1723656737054,0.3608,59196.0,59195.0,0.084442]
[1723656737238,0.3608,59196.0,59185.0,0.3156]
[1723656737550,0.3608,59191.0,59190.0,0.084449]
[1723656737845,0.25395914,59195.0,59194.0,0.084443]
[1723656738048,0.25495914,59195.0,59194.0,0.084443]
[1723656738945,0.001,59195.0,59194.0,0.084443]
[1723656739247,0.25261554,59195.0,59189.0,0.08445]
[1723656739448,0.3608,59190.0,59189.0,0.09551681]
[1723656739934,0.3608,59190.0,59189.0,0.01106681]
[1723656740140,0.3608,59190.0,59189.0,0.08445]
[1723656740344,0.61429491,59190.0,59189.0,0.08445]
[1723656741142,0.25349491,59190.0,59189.0,0.08445]
[1723656741344,0.25449491,59190.0,59189.0,0.08445]
[1723656741541,0.002,59190.0,59189.0,0.08945]
[1723656741947,0.25568373,59190.0,59189.0,0.09445]
[1723656742753,0.25368373,59190.0,59189.0,0.08445]
[1723656743354,0.25368373,59190.0,59185.0,0.30571369]
[1723656743552,0.25368373,59190.0,59184.0,0.00025322]
[1723656743553,0.3608,59186.0,59184.0,0.00025322]
[1723656743949,0.25345199,59185.0,59184.0,0.00025322]
[1723656744652,0.25345199,59185.0,59184.0,0.08471022]
[1723656745154,0.25345199,59185.0,59184.0,0.00025322]
[1723656745356,0.50390799,59185.0,59184.0,0.00025322]
[1723656745754,0.084463,59181.0,59177.0,0.084466]
[1723656745950,0.3608,59178.0,59177.0,0.084466]
[1723656746451,0.61419286,59178.0,59177.0,0.084468]
[1723656747955,0.61519286,59178.0,59177.0,0.089468]
[1723656750055,0.61619286,59178.0,59177.0,0.089468]
[1723656751653,0.44271588,59178.0,59177.0,1.080896]
[1723656751956,0.17089506,59178.0,59177.0,1.165364]
[1723656752554,0.17089506,59178.0,59177.0,1.65484121]
[1723656752743,0.00025344,59183.0,59182.0,0.16892]
[1723656752949,0.00025344,59183.0,59182.0,1.10794143]
[1723656753256,0.25373121,59183.0,59182.0,2.01486143]
[1723656753752,0.25373121,59183.0,59182.0,2.11491257]
[1723656753953,0.25373121,59183.0,59182.0,2.25491257]
[1723656754256,0.25347777,59183.0,59182.0,2.25491257]
[1723656754460,0.3608,59198.0,59197.0,0.084439]
[1723656755553,0.3608,59201.0,59196.0,0.05004332]
[1723656755749,0.001,59198.0,59197.0,0.13548232]
[1723656756344,0.25300861,59198.0,59197.0,0.13548232]
[1723656756546,0.20232594,59198.0,59197.0,0.13549094]
[1723656756747,0.3608,59201.0,59200.0,0.084435]
[1723656757157,0.45879716,59201.0,59200.0,0.084435]
[1723656757344,0.41656137,59201.0,59200.0,0.084435]
[1723656757543,0.41656137,59201.0,59197.0,0.002]
[1723656757749,0.41656137,59201.0,59198.0,0.084437]
[1723656757955,0.41756137,59201.0,59200.0,0.007]
[1723656758355,0.09899716,59201.0,59200.0,0.007]
[1723656758853,0.09899716,59201.0,59200.0,0.091435]
[1723656759857,0.09899716,59201.0,59200.0,1.16603554]
[1723656760052,0.09899716,59201.0,59200.0,1.21125856]
[1723656760453,0.09899716,59201.0,59200.0,1.20425856]
[1723656760454,0.09799716,59201.0,59200.0,1.20425856]
[1723656760951,0.00025344,59203.0,59202.0,0.084432]
[1723656761358,0.20172024,59203.0,59202.0,0.591152]
[1723656761754,0.20172024,59203.0,59202.0,1.28864567]
[1723656761955,0.01800424,59203.0,59202.0,1.61159248]
[1723656762157,0.3608,59224.0,59202.0,1.69275753]
[1723656762355,0.3608,59224.0,59223.0,0.13446131]
[1723656762564,0.3608,59224.0,59223.0,0.084402]
[1723656762763,0.56399085,59224.0,59223.0,0.084402]
[1723656763154,0.20319085,59224.0,59223.0,0.084402]
[1723656763352,0.20319085,59224.0,59223.0,0.806002]
[1723656763556,0.00025344,59229.0,59228.0,0.084395]
[1723656764050,0.25188392,59229.0,59228.0,0.084395]
[1723656764255,0.25188392,59229.0,59228.0,0.13441292]
[1723656764456,0.25188392,59229.0,59228.0,0.084395]
[1723656766655,0.25188392,59229.0,59228.0,0.52959]
[1723656766960,0.19279025,59229.0,59228.0,0.52959]
[1723656767153,0.19279025,59229.0,59228.0,1.43611]
[1723656767154,0.19679025,59229.0,59228.0,1.43611]
[1723656767356,0.11237742,59229.0,59228.0,1.43611]
[1723656768167,0.11437742,59229.0,59228.0,1.43611]
[1723656768562,0.11037742,59229.0,59228.0,1.43611]
[1723656768866,0.11537742,59229.0,59228.0,1.44211]
[1723656769162,0.11337742,59229.0,59228.0,1.44211]
[1723656770062,0.11337742,59229.0,59228.0,0.451195]
[1723656770268,0.10937742,59229.0,59228.0,0.807995]
[1723656771567,0.10937742,59229.0,59228.0,0.817995]
[1723656771763,0.11037742,59229.0,59228.0,0.817995]
[1723656771971,0.11037742,59229.0,59228.0,1.324515]
[1723656772162,0.11037742,59229.0,59228.0,0.817995]
[1723656773167,0.11037742,59229.0,59228.0,0.807995]
[1723656773971,0.11137742,59229.0,59228.0,0.823995]
[1723656774170,0.11137742,59229.0,59228.0,0.102395]
[1723656774372,0.11037742,59229.0,59228.0,0.100395]
[1723656774668,0.11137742,59229.0,59228.0,0.102395]
[1723656774871,0.11137742,59229.0,59228.0,0.018]
[1723656775168,0.19277042,59229.0,59228.0,0.002]
[1723656775374,0.19377042,59229.0,59228.0,0.002]
[1723656777773,0.19277042,59229.0,59225.0,0.084399]
[1723656777976,0.19277042,59229.0,59228.0,0.003]
[1723656778487,0.19277042,59229.0,59228.0,0.005]
[1723656778488,0.55457042,59229.0,59228.0,0.005]
[1723656778876,0.084396,59227.0,59223.0,0.084402]
[1723656779068,1.37669742,59229.0,59223.0,0.084402]
[1723656779069,0.3608,59224.0,59223.0,0.084402]
[1723656779470,0.61311549,59224.0,59223.0,0.084402]
[1723656780873,0.61311549,59224.0,59218.0,0.01111873]
[1723656780874,2.37657549,59224.0,59207.0,0.04993115]
[1723656781082,0.3608,59214.0,59201.0,0.04993115]
[1723656781272,0.3608,59214.0,59199.0,0.3608]
[1723656781273,0.1623,59213.0,59199.0,0.3608]
[1723656781474,0.3608,59207.0,59206.0,0.09535397]
[1723656781678,0.084434,59200.0,59199.0,0.3608]
[1723656781879,0.084426,59206.0,59198.0,0.00015174]
[1723656781880,0.3608,59201.0,59198.0,0.00015174]
[1723656782074,0.3368,59199.0,59198.0,0.00015174]
[1723656782475,0.421236,59199.0,59198.0,0.00015174]
[1723656783086,0.42428479,59199.0,59198.0,0.00015174]
[1723656784686,0.42528479,59199.0,59198.0,0.00015174]
[1723656785171,0.34084879,59199.0,59198.0,0.00015174]
[1723656785372,0.34084879,59199.0,59198.0,0.08458874]
[1723656785571,0.42528479,59199.0,59198.0,0.00015174]
[1723656786581,0.34084879,59199.0,59198.0,0.08458874]
[1723656786987,0.42528479,59199.0,59198.0,0.08458874]
[1723656787486,0.42528479,59199.0,59198.0,0.00015174]
[1723656788887,0.42528479,59199.0,59198.0,0.08458874]
[1723656789079,0.42628479,59199.0,59198.0,0.08458874]
[1723656790086,0.34184879,59199.0,59198.0,0.08458874]
[1723656791681,0.00504879,59199.0,59198.0,0.08458874]
[1723656793183,0.00304879,59199.0,59198.0,0.08458874]
[1723656793592,0.00404879,59199.0,59198.0,0.08458874]
[1723656794189,0.00904879,59199.0,59198.0,0.08458874]
[1723656794783,0.00504879,59199.0,59198.0,0.08458874]
[1723656796492,0.00404879,59199.0,59198.0,0.08458874]
[1723656797385,0.00504879,59199.0,59198.0,0.08458874]
[1723656797893,0.00604879,59199.0,59198.0,0.08458874]
[1723656798291,0.00504879,59199.0,59198.0,0.08458874]
[1723656800782,0.00504879,59199.0,59186.0,0.04993115]
[1723656800783,1.67460879,59199.0,59186.0,0.04993115]
[1723656801003,1.67460879,59199.0,59182.0,0.06657851]
[1723656801004,0.084455,59186.0,59182.0,0.084459]
[1723656801181,0.3608,59190.0,59174.0,0.04993115]
[1723656801182,0.084459,59183.0,59174.0,0.04993115]
[1723656801385,0.3608,59179.0,59176.0,0.084468]
[1723656801591,0.084467,59177.0,59176.0,0.084468]
[1723656801885,0.3608,59179.0,59178.0,0.084466]
[1723656802090,0.36094876,59179.0,59178.0,0.084466]
[1723656802293,0.61390287,59179.0,59178.0,0.084466]
[1723656803596,0.61390287,59179.0,59171.0,0.00025344]
[1723656803597,0.61390287,59179.0,59174.0,0.084471]
[1723656803896,0.3608,59177.0,59174.0,0.084471]
[1723656804295,0.86776,59177.0,59174.0,0.084471]
[1723656804493,0.3618,59177.0,59173.0,0.01058087]
[1723656804697,0.3608,59177.0,59176.0,0.084469]
[1723656805491,0.61282862,59177.0,59176.0,0.084469]
[1723656806699,0.61282862,59177.0,59171.0,0.01123112]
[1723656806994,0.084471,59175.0,59174.0,0.08447]
[1723656807393,0.33947835,59175.0,59174.0,0.08447]
[1723656807589,0.25500735,59175.0,59174.0,0.08447]
[1723656807998,0.25423572,59176.0,59174.0,0.08447]
[1723656808385,0.25423572,59175.0,59174.0,0.08447]
[1723656808800,0.446268,59177.0,59175.0,0.08447]
[1723656808801,0.447268,59177.0,59175.0,0.08447]
[1723656809186,0.3628,59177.0,59176.0,0.084469]
[1723656809899,0.6162614,59177.0,59176.0,0.084469]
[1723656810497,0.2544614,59177.0,59176.0,0.084469]
[1723656810695,0.21220991,59177.0,59176.0,0.445269]
[1723656811098,0.21220991,59177.0,59176.0,0.599869]
[1723656811596,0.21320991,59177.0,59176.0,0.599869]
[1723656811794,0.21420991,59177.0,59176.0,0.599869]
[1723656812705,0.21420991,59177.0,59176.0,0.66644751]
[1723656813199,0.21420991,59177.0,59176.0,0.599869]
[1723656813401,0.21420991,59177.0,59176.0,0.445269]
[1723656816497,0.57500991,59177.0,59171.0,0.01123112]
[1723656816704,0.3608,59172.0,59171.0,0.01123112]
[1723656817199,0.3608,59172.0,59171.0,0.00025344]
[1723656817200,0.69746015,59172.0,59171.0,0.00025344]
[1723656817396,0.084485,59166.0,59163.0,0.11698643]
[1723656817600,1.52014958,59172.0,59161.0,0.084491]
[1723656817601,0.3608,59164.0,59161.0,0.084491]
[1723656817800,0.1558,59163.0,59157.0,0.05040792]
[1723656817999,0.41055703,59163.0,59162.0,0.084489]
[1723656819199,0.41155703,59163.0,59162.0,0.085489]
[1723656821403,1.40312503,59163.0,59162.0,0.001]
[1723656821598,0.49619633,59163.0,59162.0,0.001]
[1723656821804,0.49719633,59163.0,59162.0,0.001]
[1723656825106,0.41270833,59163.0,59162.0,0.085489]
[1723656826912,0.49719633,59163.0,59162.0,0.001]
[1723656827714,0.60719633,59163.0,59162.0,0.001]
[1723656827911,0.49719633,59163.0,59162.0,0.001]
[1723656829110,0.49719633,59163.0,59162.0,0.085489]
[1723656829513,0.49719633,59163.0,59162.0,0.13589692]
[1723656830409,0.25690833,59163.0,59162.0,0.085489]
[1723656832803,0.25690833,59163.0,59162.0,0.169978]
[1723656833117,0.03443775,59163.0,59162.0,1.65001159]
[1723656833307,0.3608,59172.0,59167.0,0.168964]
[1723656833511,0.3608,59178.0,59167.0,1.94164234]
[1723656833711,0.25381327,59168.0,59167.0,1.85750948]
[1723656834510,0.25381327,59168.0,59167.0,1.85715365]
[1723656834821,0.25381327,59168.0,59167.0,1.85715284]
[1723656835119,0.25381327,59168.0,59167.0,1.77302748]
[1723656835520,0.25381327,59168.0,59167.0,1.8581503]
[1723656835718,0.25381327,59168.0,59167.0,1.4581503]
[1723656835914,0.25481327,59168.0,59167.0,1.4591503]